[Event "Championnat du monde jeunes U10"]
[Date "2024.11.17"]
[White "Ilko-Toth, Andras"]
[Black "Sahin, Yusuf Kerem"]
[WhiteElo "2115"]
[BlackElo "1720"]
[Round "3.26"]
[Result "1-0"]
[TimeControl "5400+30"]

1. d4 {[%clk 1:30:57]} 1... Nf6 {[%clk 1:30:43]} 2. Nf3 {[%clk 1:31:17]} 2... e6
{[%clk 1:31:06]} 3. g3 {[%clk 1:31:40]} 3... b6 {[%clk 1:31:31]} 4. Bg2 {[%clk
1:31:42]} 4... Bb7 {[%clk 1:31:50]} 5. O-O {[%clk 1:31:55]} 5... Be7 {[%clk
1:31:59]} 6. c4 {[%clk 1:31:39]} 6... O-O {[%clk 1:32:09]} 7. Nc3 {[%clk
1:31:45]} 7... Ne4 {[%clk 1:32:10]} 8. Nxe4 {[%clk 1:31:56]} 8... Bxe4 {[%clk
1:32:05]} 9. Nh4 {[%clk 1:32:05]} 9... Bxg2 {[%clk 1:31:42]} 10. Nxg2 {[%clk
1:32:32]} 10... d6 {[%clk 1:31:29]} 11. e4 {[%clk 1:30:08]} 11... Nd7 {[%clk
1:31:06]} 12. Ne3 {[%clk 1:27:15]} 12... e5 {[%clk 1:28:01]} 13. dxe5 {[%clk
1:16:51]} 13... dxe5 {[%clk 1:26:00]} 14. Qe2 {[%clk 1:10:00]} 14... c6 {[%clk
1:24:06]} 15. Rd1 {[%clk 1:06:30]} 15... Qc7 {[%clk 1:18:16]} 16. Nf5 {[%clk
0:49:19]} 16... Nc5 {[%clk 1:15:04]} 17. b3 {[%clk 0:40:59]} 17... Ne6 {[%clk
1:12:23]} 18. Bb2 {[%clk 0:38:56]} 18... Bf6 {[%clk 1:11:46]} 19. Qf3 {[%clk
0:30:27]} 19... Kh8 {[%clk 1:08:40]} 20. Rac1 {[%clk 0:24:32]} 20... Rad8 {[%clk
1:06:17]} 21. Ne3 {[%clk 0:23:07]} 21... Bg5 {[%clk 1:03:09]} 22. Qf5 {[%clk
0:18:13]} 22... Rd4 {[%clk 0:57:38]} 23. Bxd4 {[%clk 0:14:08]} 23... exd4 {[%clk
0:57:07]} 24. f4 {[%clk 0:14:27]} 24... g6 {[%clk 0:53:24]} 25. Qh3 {[%clk
0:13:05]} 25... Bxf4 {[%clk 0:47:53]} 26. gxf4 {[%clk 0:13:09]} 26... Nxf4
{[%clk 0:48:03]} 27. Qh6 {[%clk 0:08:51]} 27... Rg8 {[%clk 0:47:49]} 28. Ng4
{[%clk 0:07:51]} 28... Ne2+ {[%clk 0:47:55]} 29. Kh1 {[%clk 0:08:15]} 29... Nxc1
{[%clk 0:47:01]} 30. Nf6 {[%clk 0:08:02]} 30... Rg7 {[%clk 0:46:15]} 31. Nxh7
{[%clk 0:07:51]} 31... f5 {[%clk 0:45:25]} 32. Nf6+ {[%clk 0:08:15]} 1-0

[Variant "Standard"]
[Site "Europe Echecs"]

[Event "Championnat du monde jeunes U10"]
[Date "2024.11.17"]
[White "Schettini Acuna, Massimo Matteo"]
[Black "Zhang, Junyi"]
[WhiteElo "1703"]
[BlackElo "2061"]
[Round "3.27"]
[Result "0-1"]
[TimeControl "5400+30"]

1. e4 {[%clk 1:30:55]} 1... c5 {[%clk 1:31:00]} 2. Nf3 {[%clk 1:31:11]} 2... e6
{[%clk 1:31:30]} 3. d4 {[%clk 1:31:03]} 3... cxd4 {[%clk 1:31:59]} 4. Nxd4
{[%clk 1:30:59]} 4... Nf6 {[%clk 1:32:28]} 5. Nc3 {[%clk 1:30:55]} 5... Nc6
{[%clk 1:32:57]} 6. Ndb5 {[%clk 1:31:01]} 6... Bc5 {[%clk 1:33:08]} 7. Bf4
{[%clk 1:26:01]} 7... O-O {[%clk 1:33:26]} 8. Bc7 {[%clk 1:26:13]} 8... Qe7
{[%clk 1:33:49]} 9. Bd6 {[%clk 1:26:29]} 9... Bxd6 {[%clk 1:34:18]} 10. Qxd6
{[%clk 1:26:58]} 10... Qd8 {[%clk 1:34:36]} 11. O-O-O {[%clk 1:25:01]} 11... a6
{[%clk 1:34:56]} 12. Nd4 {[%clk 1:25:05]} 12... Ne7 {[%clk 1:35:09]} 13. Nb3
{[%clk 0:58:15]} 13... b5 {[%clk 1:32:53]} 14. f3 {[%clk 0:55:12]} 14... Ne8
{[%clk 1:29:19]} 15. Qd2 {[%clk 0:52:08]} 15... Qb6 {[%clk 1:25:41]} 16. h4
{[%clk 0:46:20]} 16... Rb8 {[%clk 1:07:44]} 17. g4 {[%clk 0:43:08]} 17... d6
{[%clk 1:04:26]} 18. h5 {[%clk 0:22:02]} 18... b4 {[%clk 1:04:05]} 19. Nb1
{[%clk 0:22:01]} 19... a5 {[%clk 1:04:15]} 20. Qd4 {[%clk 0:22:05]} 20... Qc7
{[%clk 1:01:43]} 21. h6 {[%clk 0:20:36]} 21... e5 {[%clk 0:59:50]} 22. Qc4
{[%clk 0:20:19]} 22... Qxc4 {[%clk 0:58:04]} 23. Bxc4 {[%clk 0:20:41]} 23... a4
{[%clk 0:56:24]} 24. hxg7 {[%clk 0:20:08]} 24... Kxg7 {[%clk 0:55:52]} 25. N3d2
{[%clk 0:20:15]} 25... Nc7 {[%clk 0:51:15]} 26. Nf1 {[%clk 0:20:08]} 26... Rd8
{[%clk 0:50:37]} 27. Ne3 {[%clk 0:20:06]} 27... Be6 {[%clk 0:45:39]} 28. Rh5
{[%clk 0:17:49]} 28... Bxc4 {[%clk 0:29:48]} 29. Nxc4 {[%clk 0:18:06]} 29... Nb5
{[%clk 0:30:07]} 30. Rdh1 {[%clk 0:12:12]} 30... Rh8 {[%clk 0:29:17]} 31. f4
{[%clk 0:11:55]} 31... exf4 {[%clk 0:27:33]} 32. Nbd2 {[%clk 0:11:21]} 32... a3
{[%clk 0:26:41]} 33. bxa3 {[%clk 0:08:33]} 33... bxa3 {[%clk 0:26:41]} 34. R1h3
{[%clk 0:08:08]} 34... Nd4 {[%clk 0:17:18]} 35. Nxa3 {[%clk 0:07:24]} 35... Ne2+
{[%clk 0:16:21]} 36. Kd1 {[%clk 0:07:37]} 36... Ng3 {[%clk 0:16:47]} 37. Rb5
{[%clk 0:06:47]} 37... Rxb5 {[%clk 0:15:24]} 38. Nxb5 {[%clk 0:07:13]} 38... d5
{[%clk 0:15:37]} 39. Nd6 {[%clk 0:06:53]} 39... Rd8 {[%clk 0:15:01]} 40. Nf5+
{[%clk 0:06:37]} 40... Nexf5 {[%clk 0:15:24]} 41. exf5 {[%clk 0:06:36]} 41...
Ra8 {[%clk 0:15:27]} 42. Nf3 {[%clk 0:05:30]} 42... Rxa2 {[%clk 0:15:21]} 43.
Ng5 {[%clk 0:05:29]} 43... h6 {[%clk 0:13:44]} 44. Nf3 {[%clk 0:05:24]} 44...
Ra1+ {[%clk 0:13:27]} 45. Kd2 {[%clk 0:05:33]} 45... Ra3 {[%clk 0:13:40]} 46.
Ng1 {[%clk 0:04:53]} 46... Re3 {[%clk 0:12:47]} 47. Kd1 {[%clk 0:03:11]} 47...
d4 {[%clk 0:09:40]} 48. Ne2 {[%clk 0:02:53]} 48... Nxe2 {[%clk 0:09:42]} 49.
Rxe3 {[%clk 0:03:17]} 49... dxe3 {[%clk 0:09:24]} 50. Kxe2 {[%clk 0:03:37]}
50... Kf6 {[%clk 0:09:46]} 51. Kf3 {[%clk 0:03:10]} 51... Ke5 {[%clk 0:09:42]}
52. c3 {[%clk 0:01:57]} 52... f6 {[%clk 0:10:11]} 53. c4 {[%clk 0:00:58]} 53...
Kd4 {[%clk 0:10:40]} 54. c5 {[%clk 0:00:52]} 54... Kxc5 {[%clk 0:11:07]} 55. g5
{[%clk 0:00:57]} 55... hxg5 {[%clk 0:11:34]} 56. Ke2 {[%clk 0:00:53]} 56... Kd4
{[%clk 0:12:03]} 57. Kf1 {[%clk 0:00:52]} 57... Kd3 {[%clk 0:12:08]} 58. Ke1
{[%clk 0:01:10]} 58... e2 {[%clk 0:12:23]} 59. Kf2 {[%clk 0:01:10]} 59... Kd2
{[%clk 0:12:50]} 60. Kf3 {[%clk 0:01:37]} 60... e1=Q {[%clk 0:13:06]} 61. Kg4
{[%clk 0:01:51]} 61... Qh4+ {[%clk 0:12:56]} 62. Kf3 {[%clk 0:02:00]} 62... Qg3+
{[%clk 0:13:22]} 63. Ke4 {[%clk 0:01:58]} 63... Qd3# 0-1

[Variant "Standard"]
[Site "Europe Echecs"]

[Event "Championnat du monde jeunes U10"]
[Date "2024.11.17"]
[White "Chen, Chicheng Leon"]
[Black "Aguike, Toshiya"]
[WhiteElo "1987"]
[BlackElo "1716"]
[Round "3.28"]
[Result "0-1"]
[TimeControl "5400+30"]

1. e4 {[%clk 1:30:58]} 1... e5 {[%clk 1:30:49]} 2. Nf3 {[%clk 1:31:24]} 2... Nc6
{[%clk 1:31:04]} 3. Bc4 {[%clk 1:31:50]} 3... Nf6 {[%clk 1:31:19]} 4. d3 {[%clk
1:32:06]} 4... Bc5 {[%clk 1:31:37]} 5. c3 {[%clk 1:32:30]} 5... a6 {[%clk
1:32:04]} 6. a4 {[%clk 1:32:33]} 6... d6 {[%clk 1:32:06]} 7. Nbd2 {[%clk
1:32:16]} 7... Ba7 {[%clk 1:32:06]} 8. O-O {[%clk 1:30:39]} 8... h6 {[%clk
1:32:06]} 9. Re1 {[%clk 1:30:06]} 9... g5 {[%clk 1:29:23]} 10. Nf1 {[%clk
1:18:35]} 10... g4 {[%clk 1:29:27]} 11. N3d2 {[%clk 1:12:05]} 11... h5 {[%clk
1:26:24]} 12. Nb3 {[%clk 1:04:38]} 12... h4 {[%clk 1:15:43]} 13. Bg5 {[%clk
0:54:24]} 13... Rh5 {[%clk 0:57:17]} 14. Qd2 {[%clk 0:50:21]} 14... h3 {[%clk
0:31:11]} 15. Ng3 {[%clk 0:35:30]} 15... Rh7 {[%clk 0:30:33]} 16. d4 {[%clk
0:33:13]} 16... hxg2 {[%clk 0:28:50]} 17. Kxg2 {[%clk 0:32:18]} 17... Kf8 {[%clk
0:21:42]} 18. Rf1 {[%clk 0:27:10]} 18... Kg7 {[%clk 0:18:53]} 19. f4 {[%clk
0:25:20]} 19... Qh8 {[%clk 0:15:01]} 20. Bxf6+ {[%clk 0:24:54]} 20... Kxf6
{[%clk 0:15:26]} 21. fxe5+ {[%clk 0:25:17]} 21... Ke7 {[%clk 0:15:37]} 22. exd6+
{[%clk 0:21:09]} 22... cxd6 {[%clk 0:15:53]} 23. Kg1 {[%clk 0:17:03]} 23... Ne5
{[%clk 0:14:37]} 24. Be2 {[%clk 0:08:43]} 24... Rxh2 {[%clk 0:11:03]} 25. Qg5+
{[%clk 0:08:44]} 25... Ke8 {[%clk 0:10:52]} 26. Rf6 {[%clk 0:04:20]} 26... Qh3
{[%clk 0:04:41]} 27. Qg8+ Ke7 {[%clk 0:03:50]} 28. Nf5+ {[%clk 0:00:40]} 28...
Bxf5 {[%clk 0:03:22]} 29. Rxf7+ {[%clk 0:00:31]} 29... Nxf7 {[%clk 0:03:29]} 0-1

[Variant "Standard"]
[Site "Europe Echecs"]

[Event "Championnat du monde jeunes U10"]
[Date "2024.11.17"]
[White "Chakhalov, Mikael"]
[Black "Tenuun, Tseesuren"]
[WhiteElo "1962"]
[BlackElo "1702"]
[Round "3.29"]
[Result "1-0"]
[TimeControl "5400+30"]

1. c4 {[%clk 1:30:56]} 1... e5 {[%clk 1:30:46]} 2. g3 {[%clk 1:31:14]} 2... Nc6
{[%clk 1:30:44]} 3. Bg2 {[%clk 1:31:38]} 3... Nf6 {[%clk 1:30:55]} 4. Nc3 {[%clk
1:32:01]} 4... Bc5 {[%clk 1:30:52]} 5. e3 {[%clk 1:32:12]} 5... d6 {[%clk
1:31:14]} 6. Nge2 {[%clk 1:32:17]} 6... O-O {[%clk 1:31:29]} 7. d4 {[%clk
1:28:10]} 7... exd4 {[%clk 1:31:20]} 8. exd4 {[%clk 1:28:33]} 8... Bb4 {[%clk
1:28:30]} 9. O-O {[%clk 1:24:51]} 9... Bxc3 {[%clk 1:21:40]} 10. bxc3 {[%clk
1:16:46]} 10... Ne7 {[%clk 1:20:06]} 11. Bg5 {[%clk 1:15:38]} 11... Bg4 {[%clk
1:16:59]} 12. Bxf6 {[%clk 1:14:11]} 12... gxf6 {[%clk 1:17:20]} 13. h3 {[%clk
0:44:23]} 13... Bh5 {[%clk 1:15:43]} 14. g4 {[%clk 0:40:23]} 14... Bg6 {[%clk
1:16:00]} 15. Bxb7 {[%clk 0:39:57]} 15... Rb8 {[%clk 1:16:05]} 16. Bg2 {[%clk
0:40:05]} 16... Rb2 {[%clk 1:15:52]} 17. f4 {[%clk 0:38:12]} 17... Bc2 {[%clk
1:15:02]} 18. Qc1 {[%clk 0:34:28]} 18... Qb8 {[%clk 1:15:20]} 19. Rf2 {[%clk
0:33:06]} 19... Bd3 {[%clk 1:11:41]} 20. Ng3 {[%clk 0:31:01]} 20... Rxf2 {[%clk
1:11:05]} 21. Kxf2 {[%clk 0:31:30]} 21... Ng6 22. f5 {[%clk 0:27:17]} 22... Nf4
{[%clk 1:07:23]} 23. Ke3 {[%clk 0:20:58]} 23... Nxg2+ {[%clk 1:06:46]} 24. Kxd3
{[%clk 0:21:20]} 24... Qb7 {[%clk 1:05:40]} 25. Ne4 {[%clk 0:19:51]} 25... Kg7
{[%clk 1:02:03]} 26. Qd2 {[%clk 0:16:36]} 26... Nh4 {[%clk 0:59:38]} 27. Qf2
{[%clk 0:15:13]} 27... Re8 {[%clk 0:59:35]} 28. d5 {[%clk 0:15:01]} 28... Qa6
{[%clk 0:59:55]} 29. Re1 {[%clk 0:13:17]} 29... Re5 {[%clk 0:56:14]} 30. Qxh4
{[%clk 0:10:29]} 30... Rxd5+ {[%clk 0:54:20]} 31. Ke3 {[%clk 0:10:58]} 31...
Qb6+ {[%clk 0:54:43]} 32. Kf4 {[%clk 0:11:11]} 32... Re5 {[%clk 0:52:29]} 33.
Qxf6+ {[%clk 0:11:38]} 33... Kf8 {[%clk 0:52:47]} 34. c5 {[%clk 0:10:06]} 34...
Qb2 {[%clk 0:47:44]} 35. cxd6 {[%clk 0:09:32]} 35... Qh2+ {[%clk 0:46:44]} 36.
Kg5 {[%clk 0:09:13]} 36... cxd6 {[%clk 0:43:25]} 37. Qxd6+ {[%clk 0:05:47]}
37... Kg7 {[%clk 0:39:33]} 38. Qh6+ {[%clk 0:05:56]} 38... Kg8 {[%clk 0:39:39]}
39. Nf6+ {[%clk 0:06:18]} 39... Kh8 {[%clk 0:39:55]} 40. Qxh7# {[%clk 0:06:26]}
1-0

[Variant "Standard"]
[Site "Europe Echecs"]

[Event "Championnat du monde jeunes U10"]
[Date "2024.11.17"]
[White "DAmato, Raffaele"]
[Black "Ejsymont, Eryk"]
[WhiteElo "1695"]
[BlackElo "1910"]
[Round "3.30"]
[Result "1/2-1/2"]
[TimeControl "5400+30"]

1. d4 {[%clk 1:30:52]} 1... Nf6 {[%clk 1:30:46]} 2. Nf3 {[%clk 1:31:14]} 2... d5
{[%clk 1:31:05]} 3. e3 {[%clk 1:31:35]} 3... c5 {[%clk 1:31:24]} 4. b3 {[%clk
1:31:31]} 4... e6 {[%clk 1:30:23]} 5. Bd3 {[%clk 1:31:21]} 5... Nbd7 {[%clk
1:30:12]} 6. Nbd2 {[%clk 1:30:51]} 6... Bd6 {[%clk 1:29:51]} 7. O-O {[%clk
1:30:48]} 7... O-O {[%clk 1:29:07]} 8. Bb2 {[%clk 1:30:59]} 8... b6 {[%clk
1:24:46]} 9. Ne5 {[%clk 1:29:25]} 9... Bb7 {[%clk 1:19:00]} 10. f3 {[%clk
1:24:22]} 10... Qc7 {[%clk 1:16:23]} 11. f4 {[%clk 1:24:24]} 11... Ne4 {[%clk
1:13:04]} 12. Bxe4 {[%clk 1:19:26]} 12... dxe4 {[%clk 1:13:20]} 13. Ndc4 {[%clk
1:19:08]} 13... f6 {[%clk 1:09:59]} 14. Nxd7 {[%clk 1:18:53]} 14... Rfd8 {[%clk
1:01:52]} 15. Nxd6 {[%clk 1:16:09]} 15... Qxd6 {[%clk 0:58:55]} 16. Nxf6+ {[%clk
1:15:29]} 16... gxf6 {[%clk 0:57:33]} 17. Qg4+ {[%clk 1:14:52]} 17... Kf7 {[%clk
0:46:25]} 18. dxc5 {[%clk 1:12:14]} 18... Qxc5 {[%clk 0:45:55]} 19. Bd4 {[%clk
1:10:45]} 19... Qf5 {[%clk 0:44:06]} 20. Qxf5 {[%clk 1:09:57]} 20... exf5 {[%clk
0:44:32]} 21. c4 {[%clk 1:08:38]} 21... Rd7 {[%clk 0:41:41]} 22. Kf2 {[%clk
1:08:01]} 22... h5 {[%clk 0:40:38]} 23. Rad1 {[%clk 1:05:07]} 23... Ba6 {[%clk
0:36:18]} 24. a4 {[%clk 1:03:27]} 24... Rc8 {[%clk 0:32:19]} 25. Bb2 {[%clk
1:01:10]} 25... Rcd8 {[%clk 0:31:51]} 26. Rxd7+ {[%clk 1:00:20]} 26... Rxd7
{[%clk 0:32:15]} 27. Bd4 {[%clk 1:00:21]} 27... Ke6 {[%clk 0:29:37]} 28. Rd1
{[%clk 0:58:20]} 28... Rd8 {[%clk 0:22:43]} 29. Rd2 {[%clk 0:58:31]} 29... Bb7
{[%clk 0:20:52]} 30. Bc3 {[%clk 0:58:06]} 30... Rd3 {[%clk 0:20:27]} 31. Rxd3
{[%clk 0:50:43]} 31... exd3 {[%clk 0:20:55]} 32. g3 {[%clk 0:49:57]} 32... Be4
{[%clk 0:19:43]} 33. h4 {[%clk 0:49:24]} 33... d2 {[%clk 0:17:20]} 34. Bxd2
{[%clk 0:49:45]} 34... Bc2 {[%clk 0:17:43]} 35. b4 {[%clk 0:49:55]} 35... Bxa4
{[%clk 0:17:58]} 36. Ke2 {[%clk 0:48:46]} 36... Bc2 {[%clk 0:16:06]} 37. Bc3
{[%clk 0:48:30]} 37... Be4 {[%clk 0:13:38]} 38. Kd2 {[%clk 0:47:09]} 38... Bb1
{[%clk 0:08:07]} 39. b5 {[%clk 0:45:12]} 39... Be4 {[%clk 0:06:20]} 40. Bd4
{[%clk 0:45:03]} 40... Bg2 {[%clk 0:04:50]} 41. Kc3 {[%clk 0:44:09]} 41... Bb7
{[%clk 0:00:43]} 42. Kb4 {[%clk 0:44:21]} 42... Bc8 {[%clk 0:00:35]} 43. c5
{[%clk 0:44:12]} 43... bxc5+ {[%clk 0:00:53]} 44. Kxc5 {[%clk 0:44:30]} 44... a6
{[%clk 0:00:42]} 45. bxa6 {[%clk 0:35:31]} 1/2-1/2

[Variant "Standard"]
[Site "Europe Echecs"]

[Event "Championnat du monde jeunes U10"]
[Date "2024.11.17"]
[White "Mutyalapati, Modith Aaroh"]
[Black "Skouroupathis, Kyriakos"]
[WhiteElo "1893"]
[BlackElo "1695"]
[Round "3.31"]
[Result "1-0"]
[TimeControl "5400+30"]

1. e4 {[%clk 1:30:53]} 1... d6 {[%clk 1:30:53]} 2. d4 {[%clk 1:31:03]} 2... Nf6
{[%clk 1:31:19]} 3. Nc3 {[%clk 1:31:23]} 3... g6 {[%clk 1:30:41]} 4. Nge2 {[%clk
1:29:57]} 4... Bg7 {[%clk 1:30:07]} 5. g3 {[%clk 1:29:35]} 5... O-O {[%clk
1:28:57]} 6. Bg2 {[%clk 1:29:46]} 6... Nbd7 {[%clk 1:26:26]} 7. O-O {[%clk
1:29:22]} 7... e5 {[%clk 1:20:27]} 8. d5 {[%clk 1:19:28]} 8... a5 {[%clk
1:15:35]} 9. f4 {[%clk 1:19:32]} 9... Re8 {[%clk 1:05:54]} 10. f5 {[%clk
1:16:31]} 10... Nb6 {[%clk 1:00:23]} 11. Bg5 {[%clk 1:11:40]} 11... Rf8 {[%clk
0:56:08]} 12. Qc1 {[%clk 1:10:53]} 12... Bd7 {[%clk 0:52:08]} 13. Kh1 {[%clk
0:58:53]} 13... Qe8 {[%clk 0:47:49]} 14. g4 {[%clk 0:56:30]} 14... Bb5 {[%clk
0:40:17]} 15. Bxf6 {[%clk 0:56:22]} 15... Bxf6 {[%clk 0:40:31]} 16. g5 {[%clk
0:56:19]} 16... Bd8 {[%clk 0:39:29]} 17. Nxb5 {[%clk 0:55:14]} 17... Qxb5 {[%clk
0:39:35]} 18. Ng3 {[%clk 0:55:11]} 18... a4 {[%clk 0:36:33]} 19. Rf3 {[%clk
0:50:53]} 19... Nc4 {[%clk 0:36:02]} 20. b3 {[%clk 0:47:43]} 20... axb3 {[%clk
0:34:42]} 21. cxb3 {[%clk 0:47:48]} 21... Na3 {[%clk 0:34:13]} 22. Nf1 {[%clk
0:47:20]} 22... Qb4 {[%clk 0:34:23]} 23. Rh3 {[%clk 0:44:36]} 23... Qd4 {[%clk
0:33:14]} 24. f6 {[%clk 0:44:50]} 24... Qf2 {[%clk 0:31:22]} 25. Rf3 {[%clk
0:42:42]} 25... Qh4 {[%clk 0:27:10]} 26. Rg3 {[%clk 0:33:38]} 26... Ra6 {[%clk
0:19:54]} 27. Ne3 {[%clk 0:33:14]} 27... Qf4 {[%clk 0:19:13]} 28. Qe1 {[%clk
0:33:38]} 28... c5 {[%clk 0:18:03]} 29. Qe2 {[%clk 0:32:01]} 29... Ba5 {[%clk
0:16:27]} 30. Rg4 {[%clk 0:31:38]} 30... Bc3 {[%clk 0:16:06]} 31. Rf1 {[%clk
0:32:02]} 31... Raa8 1-0

[Variant "Standard"]
[Site "Europe Echecs"]

[Event "Championnat du monde jeunes U10"]
[Date "2024.11.17"]
[White "Kazimzade, Mahammad"]
[Black "Mrozowski, Nikodem"]
[WhiteElo "1687"]
[BlackElo "1874"]
[Round "3.32"]
[Result "1/2-1/2"]
[TimeControl "5400+30"]

1. d4 {[%clk 1:30:57]} 1... Nf6 {[%clk 1:30:54]} 2. c4 {[%clk 1:31:17]} 2... g6
{[%clk 1:31:19]} 3. Nc3 {[%clk 1:31:34]} 3... d5 {[%clk 1:31:43]} 4. cxd5 {[%clk
1:31:51]} 4... Nxd5 {[%clk 1:32:05]} 5. g3 {[%clk 1:32:06]} 5... Bg7 {[%clk
1:31:28]} 6. Bg2 {[%clk 1:31:09]} 6... Nb6 {[%clk 1:31:02]} 7. Nf3 {[%clk
1:30:46]} 7... O-O {[%clk 1:30:31]} 8. O-O {[%clk 1:28:14]} 8... Nc6 {[%clk
1:29:31]} 9. e3 {[%clk 1:23:12]} 9... Re8 {[%clk 1:28:10]} 10. Ne1 {[%clk
1:13:06]} 10... e5 {[%clk 1:20:13]} 11. d5 {[%clk 1:12:42]} 11... Na5 {[%clk
1:20:29]} 12. Nc2 {[%clk 1:09:45]} 12... e4 {[%clk 1:15:38]} 13. Nxe4 {[%clk
1:08:34]} 13... Nxd5 {[%clk 1:15:07]} 14. Qe2 {[%clk 1:04:10]} 14... Bf5 {[%clk
1:08:53]} 15. Nc5 {[%clk 1:03:06]} 15... Qd6 {[%clk 1:06:44]} 16. Nb3 {[%clk
1:00:29]} 16... Nxb3 {[%clk 1:04:52]} 17. axb3 {[%clk 1:00:45]} 17... Be4 {[%clk
1:02:34]} 18. Bxe4 {[%clk 0:57:34]} 18... Rxe4 {[%clk 1:02:57]} 19. Rd1 {[%clk
0:57:38]} 19... Qc6 {[%clk 0:43:22]} 20. Qd3 {[%clk 0:51:57]} 20... Nb6 {[%clk
0:41:43]} 21. Ra2 {[%clk 0:49:39]} 21... Re7 {[%clk 0:36:22]} 22. Nb4 {[%clk
0:47:16]} 22... Qf3 {[%clk 0:35:44]} 23. Qc2 {[%clk 0:45:54]} 23... c5 {[%clk
0:28:24]} 24. Nd3 {[%clk 0:44:21]} 24... Rd7 {[%clk 0:28:08]} 25. Rd2 {[%clk
0:44:08]} 25... Rad8 {[%clk 0:23:22]} 26. Ra5 {[%clk 0:40:32]} 26... c4 {[%clk
0:21:11]} 27. bxc4 {[%clk 0:39:09]} 27... Qe4 {[%clk 0:20:23]} 28. Nc5 {[%clk
0:38:38]} 28... Qxc2 {[%clk 0:20:47]} 29. Rxc2 {[%clk 0:39:02]} 29... Rd1+
{[%clk 0:20:34]} 30. Kg2 {[%clk 0:39:27]} 30... Rc8 {[%clk 0:20:14]} 31. b4
{[%clk 0:38:16]} 31... a6 {[%clk 0:19:47]} 32. Nxb7 {[%clk 0:38:02]} 32... Rxc4
{[%clk 0:17:08]} 33. Rc5 {[%clk 0:38:22]} 33... Rxc2 {[%clk 0:15:21]} 34. Rxc2
{[%clk 0:38:37]} 34... Bf8 {[%clk 0:15:31]} 35. Nc5 {[%clk 0:38:22]} 35... Nd5
{[%clk 0:15:03]} 36. Nxa6 {[%clk 0:38:44]} 36... Nxb4 {[%clk 0:15:13]} 37. Nxb4
{[%clk 0:39:02]} 37... Bxb4 {[%clk 0:15:38]} 38. Bb2 {[%clk 0:39:27]} 38... Be7
{[%clk 0:14:53]} 39. Rc7 {[%clk 0:39:09]} 39... Kf8 {[%clk 0:15:02]} 40. Kf3
{[%clk 0:38:54]} 40... Ke8 {[%clk 0:14:39]} 41. Bd4 {[%clk 0:38:37]} 41... Rd2
{[%clk 0:14:05]} 42. Bc5 {[%clk 0:35:57]} 42... Bxc5 {[%clk 0:14:09]} 43. Rxc5
{[%clk 0:36:22]} 43... Ke7 {[%clk 0:14:01]} 44. Rc6 {[%clk 0:36:47]} 44... Kd7
{[%clk 0:13:15]} 45. Ra6 {[%clk 0:37:08]} 45... Rb2 {[%clk 0:12:39]} 46. e4
{[%clk 0:37:24]} 46... Rb3+ {[%clk 0:12:50]} 47. Kg2 {[%clk 0:37:18]} 47... Rb2
{[%clk 0:11:50]} 48. h4 {[%clk 0:37:41]} 48... Rb3 {[%clk 0:12:01]} 49. h5
{[%clk 0:36:58]} 49... Rc3 {[%clk 0:12:00]} 50. Ra8 {[%clk 0:36:09]} 50... Rc5
{[%clk 0:11:14]} 51. hxg6 {[%clk 0:36:27]} 51... hxg6 {[%clk 0:11:41]} 52. Ra6
{[%clk 0:36:51]} 52... Rc3 {[%clk 0:12:06]} 53. f4 {[%clk 0:36:06]} 53... Rb3
{[%clk 0:11:50]} 54. e5 {[%clk 0:36:14]} 54... Ke7 {[%clk 0:11:50]} 55. Kh3
{[%clk 0:36:04]} 55... Rc3 {[%clk 0:10:59]} 56. Kh4 {[%clk 0:36:19]} 56... Rf3
{[%clk 0:11:19]} 57. Rd6 {[%clk 0:35:47]} 57... Rb3 {[%clk 0:08:53]} 58. g4
{[%clk 0:36:08]} 58... Rf3 {[%clk 0:08:45]} 59. Kg5 {[%clk 0:36:22]} 59... Rg3
{[%clk 0:08:58]} 60. Ra6 {[%clk 0:36:20]} 60... Rg1 {[%clk 0:09:11]} 61. Kh4
{[%clk 0:35:19]} 61... Rh1+ {[%clk 0:09:12]} 62. Kg3 {[%clk 0:35:36]} 62... Rg1+
{[%clk 0:09:22]} 63. Kf3 {[%clk 0:34:50]} 63... Rf1+ {[%clk 0:09:21]} 64. Kg3
{[%clk 0:34:47]} 64... Rg1+ {[%clk 0:09:44]} 65. Kh4 {[%clk 0:35:12]} 65... Rh1+
{[%clk 0:09:56]} 66. Kg5 {[%clk 0:35:35]} 66... Rg1 {[%clk 0:10:21]} 67. e6
{[%clk 0:35:21]} 67... fxe6 {[%clk 0:09:54]} 68. Ra7+ {[%clk 0:35:47]} 68... Kf8
{[%clk 0:08:04]} 69. Kf6 {[%clk 0:36:10]} 69... Kg8 {[%clk 0:08:27]} 70. Rg7+
{[%clk 0:36:31]} 70... Kf8 {[%clk 0:08:47]} 71. Rxg6 {[%clk 0:36:55]} 71... Re1
{[%clk 0:08:57]} 72. Rh6 {[%clk 0:37:13]} 72... Kg8 {[%clk 0:09:15]} 73. Ke7
{[%clk 0:37:19]} 73... Re4 {[%clk 0:09:09]} 74. Rf6 {[%clk 0:37:35]} 74... e5
{[%clk 0:09:28]} 75. f5 {[%clk 0:37:34]} 75... Rxg4 {[%clk 0:09:01]} 76. Rf8+
{[%clk 0:37:58]} 76... Kh7 {[%clk 0:09:26]} 77. f6 {[%clk 0:38:23]} 77... Ra4
{[%clk 0:09:22]} 78. f7 {[%clk 0:38:43]} 78... Ra7+ {[%clk 0:09:31]} 79. Ke6
{[%clk 0:37:03]} 79... Ra6+ {[%clk 0:09:46]} 1/2-1/2

[Variant "Standard"]
[Site "Europe Echecs"]